fUST/lending_fUST_20250619
["ID","MTS","AMOUNT","RATE_DAILY","PERIOD"]
[366625769,1750343432675,-574.3302288,0.000211,2]
[366625770,1750343432684,-153.0,0.000211,2]
[366625771,1750343432693,-153.0,0.000211,2]
[366625772,1750343432702,-451.4549208,0.000211,2]
[366625773,1750343432711,-159.0225674,0.000211,2]
[366625774,1750343432720,-159.0225674,0.000211,2]
[366625776,1750343432730,-153.0,0.000211,2]
[366625778,1750343432739,-574.3302288,0.000211,2]
[366625780,1750343432748,-153.0,0.000211,2]
[366625782,1750343432757,-849.18,0.00021117,2]
[366625784,1750343432767,-841.14766002,0.0002117,2]
[366625786,1750343432777,-500.0,0.00021297,2]
[366625788,1750343432788,-9817.10165636,0.00021298,2]
[366625791,1750343432808,-695.00504384,0.00021298,2]
[366625793,1750343432819,-1044.8,0.00021298,2]
[366625803,1750343432902,-500.0,0.00021297,2]
[366625805,1750343432913,-987.77860853,0.00021298,2]
[366625808,1750343432924,-149.64860548,0.00021305,2]
[366625818,1750343433028,-338.67935418,0.00021297,2]
[366625819,1750343433040,-129.20009367,0.00021305,2]
[366625820,1750343433050,-500.0,0.00021471,2]
[366625821,1750343433059,-513.09277418,0.00021471,2]
[366625822,1750343433069,-500.0,0.00021471,2]
[366625823,1750343433078,-501.49722536,0.00021471,2]
[366625824,1750343433088,-261.05356942,0.00021471,2]
[366625825,1750343433098,-511.74940902,0.0002156,2]
[366625826,1750343433107,-500.0,0.0002156,2]
[366625827,1750343433117,-1283.32957005,0.00021566,2]
[366625828,1750343433127,-437.31259665,0.000216,2]
[366625829,1750343433136,-500.0,0.00021616,2]
[366625830,1750343433146,-500.0,0.00021616,2]
[366625831,1750343433155,-500.0,0.00021616,2]
[366625832,1750343433165,-500.0,0.00021616,2]
[366625833,1750343433174,-500.0,0.00021659,2]
[366625834,1750343433184,-213.47708638,0.00021693,2]
[366625835,1750343433194,-836.1357872,0.00021693,2]
[366625836,1750343433203,-897.52454019,0.00021695,2]
[366625837,1750343433213,-500.0,0.00021732,2]
[366625838,1750343433222,-195.89033379,0.00021774,2]
[366625839,1750343433232,-161.75300891,0.00021776,2]
[366625840,1750343433243,-500.0,0.00021783,2]
[366625841,1750343433253,-500.0,0.00021783,2]
[366625842,1750343433263,-500.0,0.00021783,2]
[366625843,1750343433273,-493.67140531,0.00021818,2]
[366625844,1750343433282,-1821.4903492,0.00021863,2]
[366625845,1750343433295,-3961.92783141,0.00021863,2]
[366625846,1750343433309,-801.30216585,0.00021863,2]
[366625847,1750343433319,-159.0225674,0.00021863,2]
[366625848,1750343433329,-574.3302288,0.00021863,2]
[366625849,1750343433338,-159.0225674,0.00021863,2]
[366625850,1750343433349,-574.3302288,0.00021863,2]
[366625851,1750343433359,-153.0,0.00021863,2]
[366625852,1750343433369,-153.0,0.00021863,2]
[366625853,1750343433380,-159.0225674,0.00021863,2]
[366625854,1750343433391,-574.3302288,0.00021863,2]
[366625855,1750343433401,-159.0225674,0.00021863,2]
[366625856,1750343433411,-574.3302288,0.00021863,2]
[366625857,1750343433422,-153.0,0.00021863,2]
[366625858,1750343433432,-574.3302288,0.00021863,2]
[366625859,1750343433442,-159.0225674,0.00021863,2]
[366625860,1750343433453,-153.0,0.00021863,2]
[366625861,1750343433462,-159.0225674,0.00021863,2]
[366625862,1750343433474,-574.3302288,0.00021863,2]
[366625863,1750343433485,-159.0225674,0.00021863,2]
[366625864,1750343433496,-574.3302288,0.00021863,2]
[366625865,1750343433506,-159.0225674,0.00021863,2]
[366625866,1750343433516,-153.0,0.00021863,2]
[366625867,1750343433527,-574.3302288,0.00021863,2]
[366625868,1750343433539,-159.0225674,0.00021863,2]
[366625869,1750343433550,-345.9678915,0.00021863,2]
[366625870,1750343433560,-153.0,0.00021863,2]
[366625871,1750343433570,-156.4186771,0.00021863,2]
[366625872,1750343433583,-153.0,0.00021863,2]
[366625873,1750343433594,-333.0700408,0.00021863,2]
[366625874,1750343433603,-1061.67430295,0.000219,6]
[366625875,1750343433613,-500.0,0.00021916,2]
[366625876,1750343433623,-460.0,0.00021917,6]
[366625877,1750343433633,-460.0,0.00021917,2]
[366625878,1750343433643,-460.0,0.00021917,6]
[366625879,1750343433652,-460.0,0.00021917,6]
[366625880,1750343433662,-177.26301858,0.00021917,6]
[366625881,1750343433672,-460.0,0.00021917,6]
[366625882,1750343433682,-304.43901757,0.00021917,6]
[366625883,1750343433692,-460.0,0.00021917,6]
[366625884,1750343433702,-646.07,0.00021917,6]
[366625885,1750343433712,-506.61,0.00021917,6]
[366625886,1750343433722,-479.36,0.00021917,6]
[366625887,1750343433732,-460.0,0.00021917,6]
[366625888,1750343433742,-606.7,0.00021917,6]
[366625889,1750343433753,-474.48,0.00021917,6]
[366625890,1750343433763,-569.15471589,0.00021917,6]
[366625891,1750343433773,-460.0,0.00021917,6]
[366625892,1750343433784,-574.74,0.00021917,6]
[366625893,1750343433799,-460.0,0.00021917,6]
[366625894,1750343433810,-460.0,0.00021917,6]
[366625895,1750343433821,-460.0,0.00021917,6]
[366625896,1750343433831,-460.0,0.00021917,6]
[366625897,1750343433842,-783.9,0.00021917,6]
[366625898,1750343433852,-460.0,0.00021917,6]
[366625899,1750343433862,-2305.03028364,0.00022,2]
[366625949,1750343438163,-500.0,0.00021297,2]
[366625951,1750343438174,-500.0,0.00021297,2]
[366625953,1750343438184,-500.0,0.00021297,2]
[366625956,1750343438194,-8256.57579587,0.00022,2]
[366626165,1750343440163,-1856.4292701,0.00022,2]
[366626369,1750343442993,-460.0,0.00021917,2]
[366626370,1750343443004,-454.69071483,0.00022,2]
[366626371,1750343443014,-171.0,0.00022,2]
[366626372,1750343443024,-479.958382,0.00022009,2]
[366626373,1750343443033,-362.62126205,0.00022019,2]
[366626374,1750343443044,-1011.35442707,0.00022019,2]
[366626375,1750343443053,-1061.67430292,0.00022038,6]
[366626376,1750343443063,-1047.35377102,0.00022108,2]
[366626377,1750343443073,-965.0,0.00022155,2]
[366626378,1750343443082,-2719.82070237,0.00022155,2]
[366626380,1750343443094,-285.51241708,0.00022155,2]
[366626382,1750343443104,-1000.0,0.00022164,2]
[366626384,1750343443113,-721.87172491,0.00022164,2]
[366626387,1750343443299,-278.12827509,0.00022164,2]
[366626388,1750343443310,-1000.0,0.00022164,2]
[366626389,1750343443320,-1061.67430292,0.00022176,6]
[366626390,1750343443330,-460.0,0.00022191,6]
[366626391,1750343443340,-460.0,0.00022191,6]
[366626392,1750343443351,-460.0,0.00022191,6]
[366626393,1750343443361,-460.0,0.00022191,6]
[366626394,1750343443371,-460.0,0.00022191,6]
[366626395,1750343443380,-646.07,0.00022191,6]
[366626396,1750343443394,-506.61,0.00022191,6]
[366626397,1750343443403,-479.36,0.00022191,6]
[366626398,1750343443413,-460.0,0.00022191,6]
[366626399,1750343443423,-606.7,0.00022191,6]
[366626400,1750343443433,-474.48,0.00022191,6]
[366626401,1750343443443,-460.0,0.00022191,6]
[366626402,1750343443452,-574.74,0.00022191,6]
[366626403,1750343443462,-460.0,0.00022191,6]
[366626404,1750343443472,-460.0,0.00022191,6]
[366626405,1750343443482,-460.0,0.00022191,6]
[366626406,1750343443491,-460.0,0.00022191,6]
[366626407,1750343443500,-783.9,0.00022191,6]
[366626408,1750343443510,-460.0,0.00022191,6]
[366626409,1750343443519,-460.0,0.00022191,2]
[366626410,1750343443529,-3000.0,0.000222,2]
[366626411,1750343443539,-275.70649851,0.000222,2]
[366626412,1750343443549,-3000.0,0.0002221,2]
[366626413,1750343443559,-3000.0,0.0002222,2]
[366626414,1750343443568,-1106.58661605,0.00022221,2]
[366626415,1750343443577,-3000.0,0.0002223,2]
[366626416,1750343443587,-3000.0,0.0002224,2]
[366626417,1750343443596,-3000.0,0.0002225,2]
[366626418,1750343443606,-465.42,0.0002225,3]
[366626419,1750343443616,-310.27,0.00022251,3]
[366626420,1750343443625,-620.53,0.00022253,3]
[366626421,1750343443634,-155.13,0.00022253,3]
[366626422,1750343443644,-420.0,0.00022259,2]
[366626423,1750343443655,-420.0,0.00022259,2]
[366626424,1750343443664,-3000.0,0.0002226,2]
[366626425,1750343443673,-420.0,0.00022261,2]
[366626426,1750343443683,-1241.07,0.00022266,3]
[366626427,1750343443692,-3000.0,0.0002227,2]
[366626428,1750343443701,-199.29945915,0.0002228,2]
[366626429,1750343443711,-3000.0,0.0002228,2]
[366626430,1750343443721,-3000.0,0.0002229,2]
[366626431,1750343443731,-207.4,0.00022292,2]
[366626432,1750343443740,-3000.0,0.000223,2]
[366626433,1750343443750,-1466.15910827,0.0002231,2]
[366626434,1750343443762,-1533.84089173,0.0002231,2]
[366626435,1750343443772,-1061.67430292,0.00022314,7]
[366626436,1750343443781,-3000.0,0.0002232,2]
[366626437,1750343443791,-3000.0,0.0002233,2]
[366626438,1750343443800,-1000.0,0.00022331,2]
[366626439,1750343443810,-1000.0,0.00022331,2]
[366626440,1750343443820,-148.77833573,0.00022336,2]
[366626460,1750343446118,-0.27098082,0.00020452,2]
[366626461,1750343446130,-499.72901918,0.00020452,2]
[366626462,1750343446139,-299.34985863,0.00020452,2]
[366626463,1750343446149,-209.38404983,0.00020452,2]
[366626464,1750343446159,-500.0,0.00020452,2]
[366626465,1750343446168,-500.0,0.00020452,2]
[366626466,1750343446177,-482.34025789,0.00020452,2]
[366626467,1750343446187,-50.98459097,0.00022336,2]
[366626468,1750343446197,-3000.0,0.0002234,2]
[366626469,1750343446207,-3000.0,0.0002235,2]
[366626470,1750343446216,-654.0,0.00022356,2]
[366626471,1750343446225,-2160.0,0.00022356,2]
[366626472,1750343446234,-3000.0,0.0002236,2]
[366626473,1750343446244,-184.48794101,0.00022365,2]
[366626474,1750343446253,-1680.0,0.00022366,2]
[366626475,1750343446263,-897.52454019,0.00022366,2]
[366626476,1750343446273,-3000.0,0.0002237,2]
[366626477,1750343446282,-3000.0,0.0002238,2]
[366626478,1750343446291,-3000.0,0.0002239,2]
[366626479,1750343446301,-3000.0,0.000224,2]
[366626480,1750343446313,-3741.670024,0.0002241,2]
[366626481,1750343446324,-153.8295048,0.00022411,2]
[366626482,1750343446334,-1061.67430292,0.00022452,7]
[366626483,1750343446343,-500.0,0.00022464,3]
[366626484,1750343446352,-389.56501717,0.00022465,6]
[366626485,1750343446363,-460.0,0.00022465,6]
[366626486,1750343446372,-460.0,0.00022465,6]
[366626487,1750343446381,-460.0,0.00022465,6]
[366626488,1750343446392,-241.44579,0.00022465,6]
[366626489,1750343446402,-646.07,0.00022465,6]
[366626490,1750343446411,-506.61,0.00022465,6]
[366626491,1750343446421,-479.36,0.00022465,6]
[366626492,1750343446430,-460.0,0.00022465,6]
[366626493,1750343446440,-606.7,0.00022465,6]
[366626494,1750343446449,-416.13308786,0.00022465,6]
[366626496,1750343663458,2136.39651619,0.000201,2]
[366626497,1750343663484,2863.60348381,0.000201,2]
[366626498,1750343679081,5000.0,0.000201,2]
[366626500,1750343732757,2636.39651619,0.00019552,2]
[366626501,1750343732781,3382.50488931,0.00019552,2]
[366626502,1750343915718,313.840892,0.00013699,2]
[366626503,1750343919465,177.32,0.00018152,2]
[366626505,1750343988195,1493.50845224,0.00022,30]
[366626506,1750344024947,6626.33421869,0.00019447,2]
[366626507,1750344024972,994.83487901,0.00019447,2]
[366626509,1750344550586,184.423843,0.00019442,2]
[366626510,1750344575080,416.06698,0.00019443,2]
[366626512,1750344603452,8904.67429799,0.00019408,2]
[366626513,1750344603478,290.64191951,0.00019408,2]
[366626561,1750344632292,-313.840892,0.00020187,2]
[366626563,1750344632302,-174.40675948,0.00020341,2]
[366626565,1750344632312,-174.40675948,0.00020342,2]
[366626567,1750344632321,-174.40675948,0.00020342,2]
[366626569,1750344632330,-448.76227013,0.00020343,2]
[366626571,1750344632340,-163.27,0.00020436,2]
[366626573,1750344632352,-300.0,0.00020441,2]
[366626575,1750344632361,-300.0,0.00020441,2]
[366626577,1750344632371,-1200.0,0.00020441,2]
[366626579,1750344632380,-509.97905134,0.00020442,2]
[366626581,1750344632389,-13079.34271045,0.00020442,2]
[366626583,1750344632398,-500.0,0.00020442,2]
[366626585,1750344632408,-156.9977156,0.00020442,2]
[366626587,1750344632417,-500.0,0.00020442,2]
[366626589,1750344632427,-500.0,0.00020442,2]
[366626591,1750344632437,-246.54202037,0.00020442,2]
[366626593,1750344632447,-500.0,0.00020442,2]
[366626594,1750344632456,-500.0,0.00020442,2]
[366626596,1750344632466,-500.0,0.00020442,2]
[366626598,1750344632475,-500.0,0.00020442,2]
[366626601,1750344632484,-500.0,0.00020442,2]
[366626602,1750344632494,-271.0825055,0.00020442,2]
[366626604,1750344632503,-500.0,0.00020442,2]
[366626606,1750344632512,-500.0,0.00020442,2]
[366626608,1750344632521,-500.0,0.00020442,2]
[366626610,1750344632531,-500.0,0.00020442,2]
[366626612,1750344632539,-500.0,0.00020442,2]
[366626614,1750344632549,-500.0,0.00020442,2]
[366626616,1750344632558,-218.31936983,0.00020442,2]
[366626626,1750344632642,-281.68063017,0.00020442,2]
[366626628,1750344632652,-336.91577169,0.00020442,2]
[366626629,1750344632660,-192.7160855,0.00020442,2]
[366626632,1750344632672,-307.2839145,0.00020442,2]
[366626634,1750344632681,-500.0,0.00020442,2]
[366626636,1750344632690,-500.0,0.00020442,2]
[366626638,1750344632700,-427.22751738,0.00020442,2]
[366626640,1750344632709,-500.0,0.00020442,2]
[366626642,1750344632718,-500.0,0.00020442,2]
[366626644,1750344632727,-500.0,0.00020442,2]
[366626646,1750344632737,-316.98136324,0.00020442,2]
[366626648,1750344632747,-500.0,0.00020442,2]
[366626650,1750344632757,-500.0,0.00020442,2]
[366626652,1750344632766,-500.0,0.00020442,2]
[366626653,1750344632775,-500.0,0.00020442,2]
[366626655,1750344632785,-500.0,0.00020442,2]
[366626658,1750344632794,-500.0,0.00020442,2]
[366626660,1750344632804,-500.0,0.00020442,2]
[366626662,1750344632814,-500.0,0.00020442,2]
[366626664,1750344632823,-500.0,0.00020442,2]
[366626665,1750344632833,-500.0,0.00020442,2]
[366626668,1750344632842,-259.65730796,0.00020442,2]
[366626670,1750344632852,-500.0,0.00020442,2]
[366626672,1750344632867,-500.0,0.00020442,2]
[366626674,1750344632877,-500.0,0.00020442,2]
[366626676,1750344632887,-500.0,0.00020442,2]
[366626678,1750344632897,-500.0,0.00020442,2]
[366626680,1750344632907,-500.0,0.00020442,2]
[366626682,1750344632916,-500.0,0.00020442,2]
[366626684,1750344632926,-477.85920137,0.00020442,2]
[366626686,1750344632935,-500.0,0.00020442,2]
[366626688,1750344632945,-500.0,0.00020442,2]
[366626690,1750344632954,-300.0,0.00020443,2]
[366626692,1750344632963,-500.0,0.000205,2]
[366626694,1750344632972,-359.4703468,0.00020608,2]
[366626696,1750344632982,-178.394,0.00020622,2]
[366626698,1750344632991,-885.99,0.00020811,2]
[366626700,1750344633000,-448.76227009,0.00021015,2]
[366626702,1750344633009,-500.0,0.00021433,2]
[366626704,1750344633018,-448.76227009,0.00021687,2]
[366626706,1750344633028,-1198.42855141,0.000219,6]
[366626708,1750344633038,-460.0,0.00021917,6]
[366626709,1750344633048,-460.0,0.00021917,6]
[366626712,1750344633058,-460.0,0.00021917,6]
[366626714,1750344633068,-460.0,0.00021917,6]
[366626715,1750344633078,-460.0,0.00021917,6]
[366626717,1750344633087,-361.40268997,0.00021917,6]
[366626720,1750344633105,-98.59731003,0.00021917,6]
[366626722,1750344633115,-460.0,0.00021917,6]
[366626724,1750344633125,-460.0,0.00021917,6]
[366626726,1750344633136,-460.0,0.00021917,6]
[366626728,1750344633146,-460.0,0.00021917,6]
[366626730,1750344633156,-460.0,0.00021917,6]
[366626732,1750344633166,-460.0,0.00021917,6]
[366626734,1750344633176,-460.0,0.00021917,6]
[366626736,1750344633186,-526.84,0.00021917,6]
[366626738,1750344633196,-530.86,0.00021917,6]
[366626740,1750344633206,-460.0,0.00021917,2]
[366626742,1750344633216,-460.0,0.00021917,6]
[366626744,1750344633226,-565.31,0.00021917,6]
[366626746,1750344633236,-404.11592244,0.00021918,7]
[366626748,1750344633246,-500.0,0.00021927,2]
[366626750,1750344633256,-1000.0,0.00021981,2]
[366626752,1750344633266,-165.0,0.00022,2]
[366626754,1750344633275,-1198.42855135,0.00022038,6]
[366626756,1750344633285,-1198.42855135,0.00022176,6]
[366626758,1750344633294,-115.41966483,0.0002219,2]
[366626763,1750344633334,-371.1576791,0.0002219,2]
[366627071,1750344638195,-435.82383396,0.00022191,6]
[366627074,1750344638209,-24.17616604,0.00022191,6]
[366627076,1750344638219,-460.0,0.00022191,6]
[366627078,1750344638229,-460.0,0.00022191,6]
[366627080,1750344638238,-460.0,0.00022191,6]
[366627082,1750344638247,-460.0,0.00022191,6]
[366627084,1750344638260,-460.0,0.00022191,6]
[366627086,1750344638271,-460.0,0.00022191,6]
[366627088,1750344638281,-460.0,0.00022191,6]
[366627090,1750344638292,-460.0,0.00022191,6]
[366627093,1750344638302,-460.0,0.00022191,6]
[366627095,1750344638312,-118.98721972,0.00022191,6]
[366627331,1750344640661,-341.01278028,0.00022191,6]
[366627333,1750344640670,-460.0,0.00022191,6]
[366627335,1750344640680,-460.0,0.00022191,6]
[366627337,1750344640690,-526.84,0.00022191,6]
[366627339,1750344640700,-530.86,0.00022191,6]
[366627341,1750344640709,-460.0,0.00022191,2]
[366627343,1750344640719,-460.0,0.00022191,6]
[366627345,1750344640728,-565.31,0.00022191,6]
[366627347,1750344640738,-158.25660061,0.00022244,2]
[366627349,1750344640748,-168.0,0.00022246,2]
[366627351,1750344640757,-420.0,0.00022248,2]
[366627353,1750344640767,-122.26711651,0.00022248,2]
[366627355,1750344640779,-62.73288349,0.00022248,2]
[366627357,1750344640788,-420.0,0.00022251,2]
[366627359,1750344640798,-117.26353966,0.00022292,2]
[366627746,1750344644816,-500.0,0.00022189,2]
[366627748,1750344644827,-291.10234475,0.00022189,2]
[366627751,1750344644837,-500.0,0.00022189,2]
[366627753,1750344644847,-500.0,0.00022189,2]
[366627754,1750344644859,-390.42426615,0.00022189,2]
[366627757,1750344644873,-109.57573385,0.00022189,2]
[366627759,1750344644884,-500.0,0.00022189,2]
[366627761,1750344644894,-396.63823151,0.00022189,2]
[366627763,1750344644905,-500.0,0.00022189,2]
[366627781,1750344645069,-500.0,0.00022189,2]
[366627783,1750344645082,-500.0,0.00022189,2]
[366627785,1750344645091,-500.0,0.00022189,2]
[366627787,1750344645102,-90.13646034,0.00022292,2]
[366627789,1750344645113,-1198.42855135,0.00022314,7]
[366627791,1750344645123,-188.31441205,0.00022354,2]
[366629298,1750344827347,5000.0,0.00018152,2]
[366629299,1750344993981,264.4934841,0.00019443,2]
[366629302,1750345119370,330.532833,0.00013699,2]
[366629304,1750345290940,501.81561074,0.000201,2]
[366629311,1750345464170,-500.0,0.00020154,2]
[366629312,1750345464196,-330.532833,0.00020187,2]
[366629313,1750345464222,-2245.79,0.00020441,2]
[366629314,1750345464248,-300.0,0.00020497,2]
[366629315,1750345464274,-251.36095592,0.00020498,2]
[366629316,1750345464303,-500.0,0.00020498,2]
[366629317,1750345464331,-372.31621108,0.00020498,2]
[366629318,1750345464366,-77.68378892,0.00020498,2]
[366629319,1750345464394,-500.0,0.00020498,2]
[366629320,1750345464419,-376.89591207,0.00020498,2]
[366629321,1750345464446,-500.0,0.00020498,2]
[366629322,1750345464474,-349.1237841,0.00020498,2]
[366629323,1750345464500,-500.0,0.00020498,2]
[366629324,1750345464529,-500.0,0.00020498,2]
[366629325,1750345464554,-500.0,0.00020498,2]
[366629326,1750345464581,-469.3195556,0.00020498,2]
[366629327,1750345464607,-500.0,0.00020498,2]
[366629328,1750345464633,-226.97695931,0.00020499,2]
[366629329,1750345464664,-4500.0,0.00020499,2]
[366629330,1750345464701,-4500.0,0.00020499,2]
[366629331,1750345464858,-4500.0,0.00020499,2]
[366629332,1750345465048,-4500.0,0.00020499,2]
[366629333,1750345465260,-4500.0,0.00020499,2]
[366629334,1750345465475,-2173.02304069,0.00020499,2]
[366629335,1750345465500,-376.58012528,0.00020521,2]
[366629336,1750345465526,-1950.39683403,0.00020621,2]
[366629337,1750345465665,-295.39316597,0.00020621,2]
[366629338,1750345465691,-505.59916319,0.00020736,2]
[366629339,1750345465717,-268.0,0.00020796,2]
[366629340,1750345465744,-880.92,0.00020809,2]
[366629341,1750345465770,-268.0,0.00020843,2]
[366629342,1750345465794,-2000.0,0.00021,2]
[366629343,1750345465820,-268.0,0.00021055,2]
[366629344,1750345465848,-14.08767084,0.00021077,2]
[366629345,1750345465880,-253.91232916,0.00021077,2]
[366629346,1750345465905,-376.58012523,0.00021169,2]
[366629347,1750345465931,-168.0,0.00021374,2]
[366629348,1750345465956,-268.0,0.00021448,2]
[366629349,1750345465981,-300.0,0.00021498,2]
[366629350,1750345466005,-2000.0,0.000215,2]
[366629351,1750345466031,-268.0,0.00021581,2]
[366629352,1750345466058,-865.50754561,0.00021741,2]
[366629353,1750345466087,-334.49245439,0.00021741,2]
[366629354,1750345466131,-173.40529252,0.00021742,2]
[366629355,1750345466172,-495.28378577,0.0002181,7]
[366629356,1750345466212,-376.58012523,0.00021817,2]
[366629357,1750345466254,-495.28378577,0.0002184,6]
[366629358,1750345466295,-495.28378577,0.00021869,11]
[366629359,1750345466335,-500.0,0.00021898,2]
[366629360,1750345466384,-500.0,0.00021898,2]
[366629361,1750345466426,-203.77164133,0.00021898,2]
[366629362,1750345466470,-500.0,0.00021898,2]
[366629363,1750345466513,-425.89912922,0.00021898,2]
[366629364,1750345466566,-74.10087078,0.00021898,2]
[366629365,1750345466611,-500.0,0.00021898,2]
[366629366,1750345466662,-500.0,0.00021898,2]
[366629367,1750345466711,-500.0,0.00021898,2]
[366629368,1750345466760,-500.0,0.00021898,2]
[366629369,1750345466811,-500.0,0.00021898,2]
[366629370,1750345466868,-500.0,0.00021898,2]
[366629371,1750345466917,-500.0,0.00021898,2]
[366629372,1750345466967,-500.0,0.00021898,2]
[366629373,1750345467019,-277.64676206,0.00021898,2]
[366629374,1750345467064,-148.25236716,0.00021898,2]
[366629375,1750345467129,-351.74763284,0.00021898,2]
[366629376,1750345467183,-500.0,0.00021898,2]
[366629377,1750345467234,-500.0,0.00021898,2]
[366629378,1750345467289,-500.0,0.00021898,2]
[366629379,1750345467338,-500.0,0.00021898,2]
[366629380,1750345467391,-250.0,0.00021898,2]
[366629381,1750345467438,-495.28378577,0.00021899,14]
[366629382,1750345467492,-1402.96858139,0.000219,6]
[366629383,1750345467551,-79.42823339,0.000219,6]
[366629384,1750345467594,-207.4,0.00021903,2]
[366629385,1750345467640,-300.0,0.00021913,2]
[366629386,1750345467683,-300.0,0.00021913,2]
[366629387,1750345467724,-500.0,0.00021917,6]
[366629388,1750345467767,-460.0,0.00021917,6]
[366629389,1750345467809,-460.0,0.00021917,6]
[366629390,1750345467852,-460.0,0.00021917,2]
[366629391,1750345467892,-400.0,0.00021918,7]
[366629392,1750345467936,-495.28378577,0.00021929,12]
[366629393,1750345467977,-495.28378577,0.00021958,4]
[366629394,1750345468018,-342.60419507,0.00021962,3]
[366629395,1750345468142,-805.30826393,0.00021962,3]
[366629396,1750345468301,-500.0,0.00021973,2]
[366629397,1750345468344,-500.0,0.00021973,2]
[366629398,1750345468391,-151.0,0.00021987,2]
[366629399,1750345468436,-2536.98672886,0.00021987,2]
[366629400,1750345468479,-6.70500721,0.00021987,2]
[366629401,1750345468531,-223.08972767,0.00021987,2]
[366629402,1750345468575,-495.28378577,0.00021988,12]
[366629403,1750345468620,-460.0,0.00021999,2]
[366629404,1750345468665,-460.0,0.00021999,6]
[366629405,1750345468710,-460.0,0.00021999,6]
[366629406,1750345468763,-460.0,0.00021999,6]
[366629407,1750345468810,-486.62,0.00021999,6]
[366629408,1750345468860,-482.94,0.00021999,6]
[366629409,1750345468908,-460.0,0.00021999,6]
[366629410,1750345468954,-460.0,0.00021999,6]
[366629411,1750345468998,-52.06648656,0.00021999,6]
[366629412,1750345469051,-407.93351344,0.00021999,6]
[366629413,1750345469100,-430.0,0.00021999,6]
[366629414,1750345469153,-3662.06648656,0.00022,2]
[366629415,1750345469202,-236.13870287,0.00022,2]
[366629416,1750345486388,178.965992,0.00021829,6]
[366629417,1750345492021,319.65510134,0.00021998,2]
[366629418,1750345496967,460.0,0.00021917,6]
[366629419,1750345500976,983.924965,0.00021962,3]
[366629420,1750345501331,518.2,0.00021999,6]
[366629421,1750345502867,300.0,0.00021999,2]
[366629422,1750345503280,1200.0,0.00021999,2]
[366629423,1750345507818,207.4,0.00021563,2]
[366629424,1750345511375,95.71523879,0.00020813,2]
[366629425,1750345511594,773.99476121,0.00020813,2]
[366629426,1750345519924,460.0,0.00021917,6]
[366629427,1750345520713,460.0,0.00021999,6]
[366629428,1750345522315,466.35,0.00021917,6]
[366629429,1750345531568,460.0,0.00021999,6]
[366629430,1750345604058,785.68969694,0.00019899,2]
[366629431,1750345635633,523.79313129,0.00019899,2]
[366629433,1750345732714,430.819004,0.0002465,120]
[366629540,1750345832324,-500.0,0.00020154,2]
[366629542,1750345832334,-128.7423209,0.00020809,2]
[366629545,1750345832538,-729.8976791,0.00020809,2]
[366629546,1750345832549,-206.015825,0.00020913,2]
[366629547,1750345832559,-208.03349,0.00020955,2]
[366629548,1750345832570,-1432.98358764,0.000219,6]
[366629549,1750345832580,-1200.0,0.00021916,2]
[366629550,1750345832590,-300.0,0.00021916,2]
[366629551,1750345832600,-23997.70028193,0.00021917,2]
[366629552,1750345832609,-460.0,0.00021917,6]
[366629553,1750345832618,-496.61,0.00021917,6]
[366629554,1750345832628,-460.0,0.00021917,6]
[366629555,1750345832637,-460.0,0.00021917,6]
[366629556,1750345832646,-460.0,0.00021917,6]